[Event "Early-Titled-Tuesday-Blitz-March-26-2024"]
[Site "Chess.com"]
[Date "2024.03.26"]
[Round "8"]
[White "ViktoriyaTarasova"]
[Black "SlavenPastar"]
[Result "1/2-1/2"]
[WhiteElo "2368"]
[BlackElo "2576"]
[TimeControl "180+1"]
[EndTime "9:26:56 PDT"]
[Termination "Game drawn - insufficient material"]

1. d4 {[%clk 0:03:00.9]} 1... b6 {[%clk 0:03:00.9]} 2. e4 {[%clk 0:03:00.2]}
2... Bb7 {[%clk 0:03:01.4]} 3. Bd3 {[%clk 0:02:59.5]} 3... Nf6 {[%clk
0:03:01.8]} 4. Nd2 {[%clk 0:02:59.1]} 4... e6 {[%clk 0:03:01.9]} 5. c3 {[%clk
0:02:57.8]} 5... c5 {[%clk 0:02:59.3]} 6. Ne2 {[%clk 0:02:56.6]} 6... Be7 {[%clk
0:02:57.2]} 7. O-O {[%clk 0:02:56.5]} 7... d6 {[%clk 0:02:56.6]} 8. f4 {[%clk
0:02:56.2]} 8... Qc7 {[%clk 0:02:51.9]} 9. e5 {[%clk 0:02:50.7]} 9... Nfd7
{[%clk 0:02:45.4]} 10. Ne4 {[%clk 0:02:47.8]} 10... d5 {[%clk 0:02:44.8]} 11.
N4g3 {[%clk 0:02:46.6]} 11... g6 {[%clk 0:02:44.3]} 12. Be3 {[%clk 0:02:43.6]}
12... h5 {[%clk 0:02:43.7]} 13. Rc1 {[%clk 0:02:39]} 13... c4 {[%clk 0:02:38.2]}
14. Bb1 {[%clk 0:02:38]} 14... b5 {[%clk 0:02:38.7]} 15. Nh1 {[%clk 0:02:36.1]}
15... a5 {[%clk 0:02:36.1]} 16. Nf2 {[%clk 0:02:32.7]} 16... Nc6 {[%clk
0:02:29.5]} 17. g3 {[%clk 0:02:33.1]} 17... b4 {[%clk 0:02:28.2]} 18. h3 {[%clk
0:02:33.2]} 18... a4 {[%clk 0:02:24]} 19. Kg2 {[%clk 0:02:31.3]} 19... a3 {[%clk
0:02:23]} 20. bxa3 {[%clk 0:02:31.2]} 20... Rxa3 {[%clk 0:02:18.9]} 21. g4
{[%clk 0:02:31.8]} 21... hxg4 {[%clk 0:02:18.5]} 22. hxg4 {[%clk 0:02:32.5]}
22... Qa5 {[%clk 0:02:15.8]} 23. Bd2 {[%clk 0:02:27.8]} 23... Qb6 {[%clk
0:02:01.2]} 24. Rh1 {[%clk 0:02:26.6]} 24... Rxh1 {[%clk 0:02:00.2]} 25. Qxh1
{[%clk 0:02:25.8]} 25... b3 {[%clk 0:01:58.5]} 26. axb3 {[%clk 0:02:23.4]} 26...
cxb3 {[%clk 0:01:59.1]} 27. f5 {[%clk 0:02:20.3]} 27... gxf5 {[%clk 0:01:57.5]}
28. gxf5 {[%clk 0:02:20.3]} 28... Ncxe5 {[%clk 0:01:46.6]} 29. fxe6 {[%clk
0:02:10.5]} 29... fxe6 {[%clk 0:01:34]} 30. Qh5+ {[%clk 0:02:03.5]} 30... Kd8
{[%clk 0:01:21.5]} 31. dxe5 {[%clk 0:02:00.4]} 31... b2 {[%clk 0:01:19.5]} 32.
Rf1 {[%clk 0:01:56.6]} 32... Ra1 {[%clk 0:01:19.1]} 33. Nd4 {[%clk 0:01:50.3]}
33... Bc5 {[%clk 0:01:03.2]} 34. Bg5+ {[%clk 0:01:32.1]} 34... Kc7 {[%clk
0:01:00.9]} 35. Be3 {[%clk 0:01:19.2]} 35... Ba6 {[%clk 0:00:47.2]} 36. Rh1
{[%clk 0:01:13.7]} 36... Bc4 {[%clk 0:00:44.6]} 37. Qf7 {[%clk 0:00:55.5]} 37...
Bxd4 {[%clk 0:00:39]} 38. Bxd4 {[%clk 0:00:54.5]} 38... Qc6 {[%clk 0:00:32.1]}
39. Qg6 {[%clk 0:00:43.5]} 39... Qa6 {[%clk 0:00:25.1]} 40. Qc2 {[%clk 0:00:42]}
40... Qa3 {[%clk 0:00:21.8]} 41. Nd3 {[%clk 0:00:31.2]} 41... Bxd3 {[%clk
0:00:15.3]} 42. Qxd3 {[%clk 0:00:31.1]} 42... Nc5 {[%clk 0:00:09.1]} 43. Bxc5
{[%clk 0:00:28.2]} 43... Qxc5 {[%clk 0:00:08.8]} 44. Rh7+ {[%clk 0:00:26.9]}
44... Kc6 {[%clk 0:00:08.4]} 45. Rh6 {[%clk 0:00:27.1]} 45... Qe7 {[%clk
0:00:07.8]} 46. Rh3 {[%clk 0:00:12]} 46... Qg7+ {[%clk 0:00:06.8]} 47. Rg3
{[%clk 0:00:12.4]} 47... Qxe5 {[%clk 0:00:07.4]} 48. c4 {[%clk 0:00:11.5]} 48...
Qe4+ {[%clk 0:00:05.6]} 49. Qxe4 {[%clk 0:00:10.9]} 49... dxe4 {[%clk
0:00:06.5]} 50. Bxe4+ {[%clk 0:00:11.2]} 50... Kc5 {[%clk 0:00:07.1]} 51. Rb3
{[%clk 0:00:11]} 51... Kd4 {[%clk 0:00:06.4]} 52. Bg6 {[%clk 0:00:09.2]} 52...
Ra2 {[%clk 0:00:05.8]} 53. Kg3 {[%clk 0:00:07.5]} 53... Kxc4 {[%clk 0:00:05.8]}
54. Rb8 {[%clk 0:00:08.1]} 54... Kc3 {[%clk 0:00:05.8]} 55. Rc8+ {[%clk
0:00:07.9]} 55... Kd2 {[%clk 0:00:06.1]} 56. Rd8+ {[%clk 0:00:07.8]} 56... Ke2
{[%clk 0:00:06.2]} 57. Rb8 {[%clk 0:00:07.6]} 57... Ke3 {[%clk 0:00:05.5]} 58.
Rb6 {[%clk 0:00:07.1]} 58... e5 {[%clk 0:00:05.3]} 59. Kg4 {[%clk 0:00:07.3]}
59... e4 {[%clk 0:00:05.6]} 60. Rb4 {[%clk 0:00:07]} 60... Kf2 {[%clk
0:00:04.5]} 61. Bxe4 {[%clk 0:00:06.5]} 61... Ke3 {[%clk 0:00:03.9]} 62. Bg6
{[%clk 0:00:06.2]} 62... Kd2 {[%clk 0:00:03.8]} 63. Rb8 {[%clk 0:00:05.6]} 63...
Kc1 {[%clk 0:00:03.6]} 64. Rc8+ {[%clk 0:00:06.2]} 64... Kd1 {[%clk 0:00:04.1]}
65. Rd8+ {[%clk 0:00:05.9]} 65... Kc1 {[%clk 0:00:04.3]} 66. Rc8+ {[%clk
0:00:06.3]} 66... Kd1 {[%clk 0:00:04.2]} 67. Rd8+ {[%clk 0:00:06.6]} 67... Ke2
{[%clk 0:00:04.1]} 68. Rb8 {[%clk 0:00:06.5]} 68... Kd2 {[%clk 0:00:04.1]} 69.
Rb7 {[%clk 0:00:05.9]} 69... Ra4+ {[%clk 0:00:04.6]} 70. Kg3 {[%clk 0:00:05.7]}
70... Kc3 {[%clk 0:00:05.1]} 71. Rc7+ {[%clk 0:00:06.1]} 71... Rc4 {[%clk
0:00:03.1]} 72. Rxc4+ {[%clk 0:00:05.2]} 72... Kxc4 {[%clk 0:00:04]} 73. Kf2
{[%clk 0:00:05.6]} 73... Kc3 {[%clk 0:00:04.3]} 74. Ke1 {[%clk 0:00:06.2]} 74...
Kb3 {[%clk 0:00:05.1]} 75. Ke2 {[%clk 0:00:06.7]} 75... Ka2 {[%clk 0:00:06]} 76.
Ke3 {[%clk 0:00:07.3]} 76... Ka1 {[%clk 0:00:05.9]} 77. Bc2 {[%clk 0:00:07.4]}
77... Ka2 {[%clk 0:00:06.1]} 78. Bd3 {[%clk 0:00:07.6]} 78... Ka1 {[%clk
0:00:06.7]} 79. Bc2 {[%clk 0:00:08.1]} 79... Ka2 {[%clk 0:00:07.1]} 80. Bd3
{[%clk 0:00:08.2]} 80... Kb3 {[%clk 0:00:08]} 81. Be4 {[%clk 0:00:08.4]} 81...
Kc3 {[%clk 0:00:08.9]} 82. Bf5 {[%clk 0:00:08.8]} 82... b1=Q {[%clk 0:00:09.8]}
83. Bxb1 {[%clk 0:00:08.7]} 1/2-1/2

[Event "Early-Titled-Tuesday-Blitz-March-26-2024"]
[Site "Chess.com"]
[Date "2024.03.26"]
[Round "8"]
[White "CrushingKings"]
[Black "Witik"]
[Result "0-1"]
[WhiteElo "2572"]
[BlackElo "2744"]
[TimeControl "180+1"]
[EndTime "9:27:02 PDT"]
[Termination "Witik won by resignation"]

1. Nf3 {[%clk 0:02:43]} 1... Nf6 {[%clk 0:02:59.7]} 2. g3 {[%clk 0:02:43.4]}
2... g6 {[%clk 0:02:59.4]} 3. b3 {[%clk 0:02:43.9]} 3... Bg7 {[%clk 0:02:59.3]}
4. Bb2 {[%clk 0:02:44.5]} 4... O-O {[%clk 0:02:59.4]} 5. Bg2 {[%clk 0:02:44.6]}
5... d5 {[%clk 0:02:55.6]} 6. c4 {[%clk 0:02:44.1]} 6... e6 {[%clk 0:02:49.4]}
7. O-O {[%clk 0:02:43.7]} 7... c5 {[%clk 0:02:49.9]} 8. cxd5 {[%clk 0:02:43.5]}
8... exd5 {[%clk 0:02:40.9]} 9. d4 {[%clk 0:02:43.4]} 9... Ne4 {[%clk
0:02:41.4]} 10. Qc1 {[%clk 0:02:42.9]} 10... cxd4 {[%clk 0:02:05.2]} 11. Nxd4
{[%clk 0:02:34.4]} 11... Qb6 {[%clk 0:01:58.2]} 12. e3 {[%clk 0:02:23]} 12...
Bd7 {[%clk 0:01:58.3]} 13. Nc3 {[%clk 0:02:22.1]} 13... Nxc3 {[%clk 0:01:54.1]}
14. Qxc3 {[%clk 0:02:17.9]} 14... Nc6 {[%clk 0:01:53.1]} 15. Qd2 {[%clk
0:01:35.3]} 15... Nxd4 {[%clk 0:01:50.4]} 16. Bxd4 {[%clk 0:01:35.3]} 16... Bxd4
{[%clk 0:01:48.8]} 17. Qxd4 {[%clk 0:01:35.3]} 17... Qxd4 {[%clk 0:01:47.8]} 18.
exd4 {[%clk 0:01:36]} 18... Be6 {[%clk 0:01:43.9]} 19. Rac1 {[%clk 0:01:35.5]}
19... Rac8 {[%clk 0:01:41.7]} 20. Rfe1 {[%clk 0:01:23.1]} 20... Rfd8 {[%clk
0:01:40.9]} 21. Kf1 {[%clk 0:01:23.3]} 21... Kf8 {[%clk 0:01:40.1]} 22. h3
{[%clk 0:01:22.1]} 22... h6 {[%clk 0:01:29.4]} 23. Ke2 {[%clk 0:01:22.3]} 23...
Ke7 {[%clk 0:01:28.3]} 24. Ke3 {[%clk 0:01:21.9]} 24... Kd6 {[%clk 0:01:26.9]}
25. g4 {[%clk 0:01:12.7]} 25... g5 {[%clk 0:01:21.3]} 26. f4 {[%clk 0:01:10.9]}
26... f6 {[%clk 0:00:57.3]} 27. f5 {[%clk 0:01:08.3]} 27... Bd7 {[%clk 0:00:54]}
28. Kd3 {[%clk 0:01:06.4]} 28... Rxc1 {[%clk 0:00:43.8]} 29. Rxc1 {[%clk
0:01:05.9]} 29... Re8 {[%clk 0:00:38.6]} 30. Bf3 {[%clk 0:01:01.7]} 30... b6
{[%clk 0:00:28.5]} 31. Kd2 {[%clk 0:01:00.9]} 31... h5 {[%clk 0:00:25]} 32. Rh1
{[%clk 0:00:58.9]} 32... h4 {[%clk 0:00:23.1]} 33. Rc1 {[%clk 0:00:53.6]} 33...
a5 {[%clk 0:00:23.3]} 34. Rc3 {[%clk 0:00:50.3]} 34... Ra8 {[%clk 0:00:21.6]}
35. Rc1 {[%clk 0:00:48]} 35... a4 {[%clk 0:00:15.7]} 36. Kc3 {[%clk 0:00:26.8]}
36... axb3 {[%clk 0:00:14.1]} 37. Kxb3 {[%clk 0:00:27]} 37... Bb5 {[%clk
0:00:13.6]} 38. Re1 {[%clk 0:00:19.2]} 38... Bc4+ {[%clk 0:00:11.2]} 39. Kb4
{[%clk 0:00:19.4]} 39... Rxa2 {[%clk 0:00:07.2]} 40. Re6+ {[%clk 0:00:19.9]}
40... Kd7 {[%clk 0:00:07.9]} 41. Rxf6 {[%clk 0:00:15.3]} 41... Rb2+ {[%clk
0:00:08.1]} 42. Ka4 {[%clk 0:00:15.4]} 42... Ra2+ {[%clk 0:00:08.5]} 43. Kb4
{[%clk 0:00:15.6]} 43... Rb2+ {[%clk 0:00:08.8]} 44. Ka4 {[%clk 0:00:16]} 44...
Rh2 {[%clk 0:00:09.5]} 45. Bd1 {[%clk 0:00:03.3]} 45... Rxh3 {[%clk 0:00:07.3]}
46. Kb4 {[%clk 0:00:03.7]} 46... Rd3 {[%clk 0:00:05.6]} 47. Ba4+ {[%clk
0:00:03.6]} 47... Kc7 {[%clk 0:00:03.3]} 48. Rf7+ {[%clk 0:00:03.2]} 48... Kd6
{[%clk 0:00:03.8]} 49. Rf6+ {[%clk 0:00:03.2]} 49... Kc7 {[%clk 0:00:03.3]} 50.
Rf7+ {[%clk 0:00:03.5]} 50... Kc8 {[%clk 0:00:02.6]} 51. Rf8+ {[%clk 0:00:01.8]}
51... Kb7 {[%clk 0:00:02.7]} 52. Rf7+ {[%clk 0:00:02.7]} 52... Ka6 {[%clk
0:00:02]} 53. Bc6 {[%clk 0:00:01.5]} 53... Rb3+ {[%clk 0:00:01.8]} 54. Ka4
{[%clk 0:00:01.6]} 54... b5+ {[%clk 0:00:02.7]} 55. Bxb5+ {[%clk 0:00:02]} 55...
Rxb5 {[%clk 0:00:03.6]} 56. Rf6+ {[%clk 0:00:02.3]} 56... Rb6 {[%clk 0:00:04.2]}
57. Rf7 {[%clk 0:00:02.7]} 57... Be2 {[%clk 0:00:03.7]} 58. Rg7 {[%clk
0:00:02.3]} 58... Bd1+ {[%clk 0:00:04.2]} 59. Ka3 {[%clk 0:00:02.2]} 59... h3
{[%clk 0:00:04.4]} 60. Rxg5 {[%clk 0:00:02.1]} 60... Bf3 {[%clk 0:00:03.3]} 61.
Rh5 {[%clk 0:00:02.1]} 61... Bxg4 {[%clk 0:00:03.8]} 62. Rh4 {[%clk 0:00:03]}
62... Bxf5 {[%clk 0:00:03.7]} 63. Rh5 {[%clk 0:00:03.8]} 63... Bg4 {[%clk
0:00:03.4]} 64. Rh8 {[%clk 0:00:04.7]} 64... Rc6 {[%clk 0:00:03.1]} 65. Kb4
{[%clk 0:00:04.9]} 65... Kb6 {[%clk 0:00:03.7]} 66. Rb8+ {[%clk 0:00:05.1]}
66... Kc7 {[%clk 0:00:04]} 67. Rg8 {[%clk 0:00:05.8]} 67... Rc4+ {[%clk
0:00:04.6]} 68. Kb5 {[%clk 0:00:05.9]} 68... Rxd4 {[%clk 0:00:05.5]} 69. Kc5
{[%clk 0:00:06.4]} 69... Ra4 {[%clk 0:00:05.8]} 70. Rg7+ {[%clk 0:00:07.3]}
70... Kd8 {[%clk 0:00:06.2]} 71. Kd6 {[%clk 0:00:08]} 71... Ke8 {[%clk
0:00:06.7]} 72. Rg8+ {[%clk 0:00:08]} 72... Kf7 {[%clk 0:00:07.1]} 73. Rh8
{[%clk 0:00:08.9]} 73... Kg6 {[%clk 0:00:07.4]} 74. Ke5 {[%clk 0:00:09.3]} 74...
Kg5 {[%clk 0:00:07.2]} 75. Rg8+ {[%clk 0:00:09.7]} 75... Kh4 {[%clk 0:00:07.7]}
76. Kf6 {[%clk 0:00:09.5]} 76... Kg3 {[%clk 0:00:07.7]} 77. Rh8 {[%clk
0:00:09.8]} 77... Rf4+ {[%clk 0:00:07.9]} 78. Ke5 {[%clk 0:00:10.2]} 78... d4
{[%clk 0:00:07.9]} 79. Ra8 {[%clk 0:00:09.7]} 79... h2 {[%clk 0:00:08.1]} 80.
Ra1 {[%clk 0:00:10.1]} 80... Rf2 {[%clk 0:00:07.5]} 81. Ke4 {[%clk 0:00:09.4]}
81... Bf3+ {[%clk 0:00:08]} 82. Kxd4 {[%clk 0:00:09.8]} 82... h1=Q {[%clk
0:00:08.8]} 0-1

[Event "Early-Titled-Tuesday-Blitz-March-26-2024"]
[Site "Chess.com"]
[Date "2024.03.26"]
[Round "8"]
[White "Likvidator228"]
[Black "lagunanivaria"]
[Result "1-0"]
[WhiteElo "2582"]
[BlackElo "2450"]
[TimeControl "180+1"]
[EndTime "9:27:15 PDT"]
[Termination "Likvidator228 won on time"]

1. d4 {[%clk 0:02:57.3]} 1... Nf6 {[%clk 0:02:59.7]} 2. Bf4 {[%clk 0:02:56.2]}
2... d5 {[%clk 0:02:55.9]} 3. e3 {[%clk 0:02:56.4]} 3... Bf5 {[%clk 0:02:54.8]}
4. c4 {[%clk 0:02:54.1]} 4... e6 {[%clk 0:02:51.8]} 5. Nc3 {[%clk 0:02:54.6]}
5... Bb4 {[%clk 0:02:44.7]} 6. Qb3 {[%clk 0:02:53.3]} 6... Nc6 {[%clk
0:02:44.5]} 7. a3 {[%clk 0:02:50.4]} 7... Bxc3+ {[%clk 0:02:43.8]} 8. bxc3
{[%clk 0:02:49.8]} 8... Na5 {[%clk 0:02:28.6]} 9. Qa4+ {[%clk 0:02:49.8]} 9...
c6 {[%clk 0:02:28.7]} 10. c5 {[%clk 0:02:44.1]} 10... O-O {[%clk 0:02:26.3]} 11.
Nf3 {[%clk 0:02:42.8]} 11... b6 {[%clk 0:02:14.3]} 12. cxb6 {[%clk 0:02:06.6]}
12... axb6 {[%clk 0:02:13.2]} 13. Qb4 {[%clk 0:01:57.6]} 13... Nd7 {[%clk
0:02:05]} 14. Be2 {[%clk 0:01:56.6]} 14... Re8 {[%clk 0:01:57.1]} 15. O-O {[%clk
0:01:55.5]} 15... f6 {[%clk 0:01:56.8]} 16. c4 {[%clk 0:01:44.1]} 16... dxc4
{[%clk 0:01:46]} 17. Bxc4 {[%clk 0:01:43.9]} 17... c5 {[%clk 0:01:22.7]} 18.
dxc5 {[%clk 0:01:44.1]} 18... bxc5 {[%clk 0:01:22.8]} 19. Qc3 {[%clk 0:01:42.2]}
19... Nxc4 {[%clk 0:01:20.4]} 20. Qxc4 {[%clk 0:01:42.6]} 20... Qc8 {[%clk
0:01:04.7]} 21. e4 {[%clk 0:01:39.7]} 21... Bg6 {[%clk 0:01:04.2]} 22. Rfd1
{[%clk 0:01:19.2]} 22... Bf7 {[%clk 0:00:47.7]} 23. e5 {[%clk 0:01:14.6]} 23...
Nb6 {[%clk 0:00:47.8]} 24. Qb5 {[%clk 0:01:13.5]} 24... Nd5 {[%clk 0:00:47.8]}
25. Bd2 {[%clk 0:01:06.9]} 25... Qa6 {[%clk 0:00:38.7]} 26. Qxc5 {[%clk
0:01:03.7]} 26... Bh5 {[%clk 0:00:34]} 27. exf6 {[%clk 0:00:48.9]} 27... Bxf3
{[%clk 0:00:33.8]} 28. gxf3 {[%clk 0:00:49.1]} 28... gxf6 {[%clk 0:00:33.9]} 29.
Qd4 {[%clk 0:00:37.9]} 29... Kf7 {[%clk 0:00:33.5]} 30. Kh1 {[%clk 0:00:26.8]}
30... Rg8 {[%clk 0:00:31.4]} 31. Qe4 {[%clk 0:00:24.5]} 31... Rg6 {[%clk
0:00:28.3]} 32. Rg1 {[%clk 0:00:16.3]} 32... Rag8 {[%clk 0:00:28.1]} 33. Rxg6
{[%clk 0:00:15.9]} 33... Rxg6 {[%clk 0:00:27.9]} 34. Rg1 {[%clk 0:00:16.4]}
34... Qxa3 {[%clk 0:00:23.5]} 35. Rxg6 {[%clk 0:00:16.3]} 35... hxg6 {[%clk
0:00:24.4]} 36. Be3 {[%clk 0:00:16.2]} 36... Qa8 {[%clk 0:00:16.8]} 37. Kg2
{[%clk 0:00:15.9]} 37... Qh8 {[%clk 0:00:16.4]} 38. Qc4 {[%clk 0:00:15.3]} 38...
Qb8 {[%clk 0:00:15.6]} 39. Qc6 {[%clk 0:00:14.4]} 39... Qe8 {[%clk 0:00:13]} 40.
Qb7+ {[%clk 0:00:13.6]} 40... Qe7 {[%clk 0:00:13.6]} 41. Qc6 {[%clk 0:00:13.1]}
41... Qe8 {[%clk 0:00:12.7]} 42. Qb7+ {[%clk 0:00:13.1]} 42... Kg8 {[%clk
0:00:12.9]} 43. Qa6 {[%clk 0:00:11.6]} 43... Qf7 {[%clk 0:00:13.1]} 44. Qc8+
{[%clk 0:00:11.5]} 44... Kg7 {[%clk 0:00:12.7]} 45. Qc4 {[%clk 0:00:12.1]} 45...
Ne7 {[%clk 0:00:12.6]} 46. Qe4 {[%clk 0:00:10.5]} 46... Nf5 {[%clk 0:00:13]} 47.
Qc4 {[%clk 0:00:09]} 47... Qd7 {[%clk 0:00:13.2]} 48. Qc5 {[%clk 0:00:07.9]}
48... Kf7 {[%clk 0:00:13.2]} 49. Qc4 {[%clk 0:00:07.7]} 49... Qd5 {[%clk
0:00:13.2]} 50. Qxd5 {[%clk 0:00:07.6]} 50... exd5 {[%clk 0:00:13.5]} 51. Bd2
{[%clk 0:00:08.2]} 51... Ke6 {[%clk 0:00:13.7]} 52. Kf1 {[%clk 0:00:08.6]} 52...
Nd4 {[%clk 0:00:13.1]} 53. Kg2 {[%clk 0:00:07.7]} 53... Kf5 {[%clk 0:00:13.5]}
54. Bc3 {[%clk 0:00:07.9]} 54... Ne6 {[%clk 0:00:13.9]} 55. Bd2 {[%clk
0:00:08.2]} 55... d4 {[%clk 0:00:11.2]} 56. Kf1 {[%clk 0:00:08.7]} 56... Ke5
{[%clk 0:00:10.4]} 57. Ke2 {[%clk 0:00:08.9]} 57... Kd5 {[%clk 0:00:11]} 58. Kd3
{[%clk 0:00:09.4]} 58... Nc5+ {[%clk 0:00:11.5]} 59. Ke2 {[%clk 0:00:10.1]}
59... Kc4 {[%clk 0:00:12]} 60. Bh6 {[%clk 0:00:09.8]} 60... Nd3 {[%clk
0:00:10.8]} 61. Bg7 {[%clk 0:00:09.4]} 61... f5 {[%clk 0:00:10.6]} 62. h4 {[%clk
0:00:08.4]} 62... Nf4+ {[%clk 0:00:10.8]} 63. Kd2 {[%clk 0:00:08.5]} 63... Ne6
{[%clk 0:00:10.9]} 64. Bf6 {[%clk 0:00:09]} 64... Nc5 {[%clk 0:00:11.3]} 65. Be5
{[%clk 0:00:08]} 65... Nb3+ {[%clk 0:00:10.5]} 66. Ke2 {[%clk 0:00:08.5]} 66...
Nc1+ {[%clk 0:00:07.7]} 67. Kd2 {[%clk 0:00:08.8]} 67... Nd3 {[%clk 0:00:08.1]}
68. Bg3 {[%clk 0:00:09]} 68... Nc5 {[%clk 0:00:06.3]} 69. Be5 {[%clk 0:00:08.9]}
69... d3 {[%clk 0:00:05.9]} 70. Ke3 {[%clk 0:00:08.3]} 70... Nb3 {[%clk
0:00:05.7]} 71. Bb2 {[%clk 0:00:07.8]} 71... Nc5 {[%clk 0:00:02.7]} 72. Kd2
{[%clk 0:00:06.4]} 72... Ne6 {[%clk 0:00:01.9]} 73. Be5 {[%clk 0:00:06.6]} 73...
Nc7 {[%clk 0:00:02.4]} 74. Ke3 {[%clk 0:00:06.4]} 74... Nd5+ {[%clk 0:00:02.7]}
75. Kd2 {[%clk 0:00:07]} 75... Ne7 {[%clk 0:00:02.3]} 76. Ke3 {[%clk 0:00:06.9]}
76... Nc6 {[%clk 0:00:03.2]} 77. Bf6 {[%clk 0:00:06]} 77... Nb4 {[%clk
0:00:03.6]} 78. Bb2 {[%clk 0:00:05.9]} 78... Nc2+ {[%clk 0:00:04.3]} 79. Kd2
{[%clk 0:00:06.3]} 79... Nd4 {[%clk 0:00:04.8]} 80. Ke3 {[%clk 0:00:05.2]} 80...
Ne6 {[%clk 0:00:05.5]} 81. Kd2 {[%clk 0:00:05.4]} 81... Nf4 {[%clk 0:00:04]} 82.
Be5 {[%clk 0:00:04.6]} 82... Ng2 {[%clk 0:00:04.1]} 83. Bg3 {[%clk 0:00:04.3]}
83... f4 {[%clk 0:00:04.2]} 84. Bh2 {[%clk 0:00:04.5]} 84... Kd4 {[%clk
0:00:04.9]} 85. Kd1 {[%clk 0:00:04.1]} 85... Kc3 {[%clk 0:00:05.2]} 86. Kc1
{[%clk 0:00:04.8]} 86... d2+ {[%clk 0:00:05.3]} 87. Kd1 {[%clk 0:00:05.7]} 87...
Kd3 {[%clk 0:00:04.9]} 88. h5 {[%clk 0:00:04.2]} 88... gxh5 {[%clk 0:00:05]} 89.
Bxf4 {[%clk 0:00:04.5]} 89... Nh4 {[%clk 0:00:02.1]} 90. Bxd2 {[%clk 0:00:04.5]}
90... Nxf3 {[%clk 0:00:03]} 91. Bf4 {[%clk 0:00:05.1]} 1-0